Workbook

Sheet Résumé
A1: SOLDE Prévisionnel : | B1: =B3-B5 -> 174.89
A3: RECETTES : | B3: =SUM(RECETTES) -> 23920.82
A5: DEPENSES : | B5: =SUM(DEPENSES) -> 23745.93
A23: Crédits :
A25: Crédit Renouvelable | C25: 973.07 | D25: 42 | E25: 0.4173
A26: Prêt Budget | C26: 5410.84 | D26: 138.19 | E26: 0.0246 | F26: 2019-11-03
A27: Prêt Rachat | C27: 7031.7 | D27: 169.92 | E27: 0.0685 | F27: 2020-06-03
C28: =C27+C26+C25 -> 13415.61 | D28: =D27+D26+D25 -> 350.11

Sheet Comptes
A1: Pointage | B1: Date | C1: Catégorie | D1: Détails | E1: Mode de paiement | F1: Dépenses | G1: Recettes | H1: Etat du Compte
A2: OK | B2: 2016-05-01 | C2: Solde Initial | D2: #### | E2: #### | G2: 572.53 | H2: =G2 -> 572.53 | J2: Solde Mai : | K2: =K4-K6 -> -397.64
A3: OK | B3: 2016-05-02 | C3: Achats divers | D3: Fleuriste St Lambert la Poterie | E3: Carte Bleu | F3: 25.6 | H3: =IF(B3<>"",H2+G3-F3,"") -> 546.93
A4: OK | B4: 2016-05-02 | C4: Restaurant | D4: Mac Donal's | E4: Carte Bleu | F4: 16.2 | H4: 530.73 | J4: RECETTES : | K4: =SUM(RECETTES) -> 23348.29
A5: OK | B5: 2016-05-02 | C5: Equipement maison & Hightech | D5: Cdiscount | E5: Carte Bleu | F5: 9.99 | H5: 520.74
A6: OK | B6: 2016-05-02 | C6: Equipement maison & Hightech | D6: Cdiscount | E6: Carte Bleu | F6: 8.99 | H6: 511.75 | J6: DEPENSES : | K6: =SUM(DEPENSES) -> 23745.93
A7: OK | B7: 2016-05-02 | C7: Equipement maison & Hightech | D7: Cdiscount | E7: Carte Bleu | F7: 26.99 | H7: 484.76
A8: OK | B8: 2016-05-02 | C8: Equipement maison & Hightech | D8: Cdiscount | E8: Carte Bleu | F8: 7.77 | H8: 476.99
A9: OK | B9: 2016-05-02 | C9: Retraits | D9: … | E9: Retrait | F9: 80 | H9: 396.99
A10: OK | B10: 2016-05-02 | C10: Voiture | D10: Station U | E10: Carte Bleu | F10: 39.37 | H10: 357.62
A11: OK | B11: 2016-05-02 | C11: Restaurant | D11: Wok 49 | E11: Carte Bleu | F11: 34.1 | H11: 323.52
A12: OK | B12: 2016-05-02 | C12: Transports | D12: SNCF Internet | E12: Carte Bleu | F12: 139.2 | H12: 184.32
A13: OK | B13: 2016-05-02 | C13: Equipement maison & Hightech | D13: Cdiscount | E13: Carte Bleu | F13: 19 | H13: 165.32
A14: OK | B14: 2016-05-02 | C14: Pension Alimentaire | D14: Dewatine Caroline | E14: Virement Bancaire | F14: 150 | H14: 15.32
A15: OK | B15: 2016-05-03 | C15: Alimentation | D15: Leclerc | E15: Chèque | F15: 55 | H15: -39.68
A16: OK | B16: 2016-05-03 | C16: Alimentation | D16: Leclerc | E16: Carte Bleu | F16: 136.56 | H16: -176.24
A17: OK | B17: 2016-05-03 | C17: Transports | D17: Navigo Annuel | E17: Prélevement | F17: 70 | H17: -246.24
A18: OK | B18: 2016-05-03 | C18: Prêt et pension | D18: Réserve Libre Cours LCL | E18: Prélevement | F18: 42 | H18: -288.24
A19: OK | B19: 2016-05-03 | C19: Prêt et pension | D19: Prêt Rachat LCL | E19: Prélevement | F19: 169.92 | H19: -458.16
A20: OK | B20: 2016-05-03 | C20: Prêt et pension | D20: Prêr Perso LCL | E20: Prélevement | F20: 138.19 | H20: -596.35
A21: OK | B21: 2016-05-04 | C21: Transports | D21: SNCF | E21: Carte Bleu | G21: 139.2 | H21: -457.15
A22: OK | B22: 2016-05-06 | C22: Frais Bancaire | D22: SPB | E22: Prélevement | F22: 2.4 | H22: -459.55
A23: OK | B23: 2016-05-06 | C23: Téléphone et Internet | D23: Bouygues Telecom | E23: Prélevement | F23: 1 | H23: -460.55
A24: OK | B24: 2016-05-06 | C24: Voiture | D24: VW Bank France | E24: Prélevement | F24: 420.04 | H24: -880.59
A25: OK | B25: 2016-05-09 | C25: Assurances | D25: MGC | E25: Prélevement | F25: 18.65 | H25: -899.24
A26: OK | B26: 2016-05-09 | C26: Téléphone et Internet | D26: Bouygues Telecom | E26: Prélevement | F26: 77.89 | H26: -977.13
A27: OK | B27: 2016-05-09 | C27: Autres Frais | D27: Weight Watchers | E27: Carte Bleu | F27: 17 | H27: -994.13
A28: OK | B28: 2016-05-09 | C28: Autres Frais | D28: Weight Watchers | E28: Carte Bleu | F28: 17 | H28: -1011.13
A29: OK | B29: 2016-05-10 | C29: Transports | D29: Blablacar | E29: Virement Bancaire | G29: 34 | H29: -977.13
A30: OK | B30: 2016-05-10 | C30: Dépôt | D30: Chèque Mariane Revente Téléphone | E30: Dépôt | G30: 350 | H30: -627.13
A31: OK | B31: 2016-05-10 | C31: Voiture | D31: Essence Leclerc | E31: Chèque | F31: 42.01 | H31: -669.14
A32: OK | B32: 2016-05-11 | C32: Retraits | D32: Société Générale | E32: Retrait | F32: 190 | H32: -859.14
A33: OK | B33: 2016-05-11 | C33: Alimentation | D33: Leclerc (Paiement partiel chèque) | E33: Chèque | F33: 57.86 | H33: -917
A34: OK | B34: 2016-05-11 | C34: Alimentation | D34: Leclerc | E34: Chèque | F34: 54.01 | H34: -971.01
A35: OK | B35: 2016-05-17 | C35: Téléphone et Internet | D35: Bouygues Telecom | E35: Prélevement | F35: 3.59 | H35: -974.6
A36: OK | B36: 2016-05-18 | C36: Voiture | D36: APRR | E36: Prélevement | F36: 39.3 | H36: -1013.9
A37: OK | B37: 2016-05-18 | C37: Transports | D37: Blablacar | E37: Virement Bancaire | G37: 94 | H37: -919.9
A38: OK | B38: 2016-05-18 | C38: Voiture | D38: Leclerc (Essence) | E38: Chèque | F38: 41 | H38: -960.9
A39: OK | B39: 2016-05-19 | C39: Alimentation | D39: Leclerc | E39: Chèque | F39: 30 | H39: -990.9
A40: OK | B40: 2016-05-23 | C40: Factures | D40: Engie, GDF | E40: Prélevement | F40: 68.78 | H40: -1059.68
A41: OK | B41: 2016-05-23 | C41: Achats divers | D41: Autres | E41: Chèque | F41: 40 | H41: -1099.68
A42: OK | B42: 2016-05-24 | C42: Transports | D42: Blablacar | E42: Virement Bancaire | G42: 80 | H42: -1019.68
A43: OK | B43: 2016-05-25 | C43: Frais Bancaire | D43: Total Incidents Fonctionnements | E43: Prélevement | F43: 64 | H43: -1083.68
A44: OK | B44: 2016-05-26 | C44: Frais Bancaire | D44: Cotisation Mensuel Carte | E44: Prélevement | F44: 3.55 | H44: -1087.23
A45: OK | B45: 2016-05-27 | C45: Frais Bancaire | D45: Assurance Capital Multicomptes | E45: Prélevement | F45: 1.6 | H45: -1088.83
A46: OK | B46: 2016-05-27 | C46: Frais Bancaire | D46: Assurance Decouvert Autorisé | E46: Prélevement | F46: 0.8 | H46: -1089.63
A47: OK | B47: 2016-05-27 | C47: Remboursement Bancaire | D47: LCL à la Carte | E47: Virement Bancaire | G47: 0.25 | H47: -1089.38
A48: OK | B48: 2016-05-27 | C48: Remboursement Bancaire | D48: LCL à la Carte | E48: Virement Bancaire | G48: 1.25 | H48: -1088.13
A49: OK | B49: 2016-05-30 | C49: Voiture | D49: Leclerc (Essence) | E49: Chèque | F49: 57.5 | H49: -1145.63
A50: OK | B50: 2016-05-31 | C50: Salaire | D50: Société National des Chemins de Fer | E50: Virement Bancaire | G50: 2683.93 | H50: 1538.3
A51: OK | B51: 2016-06-01 | C51: Factures | D51: Véolia eau | E51: Prélevement | F51: 133.55 | H51: =IF(B51<>"",H50+G51-F51,"") -> 1404.75
A52: OK | B52: 2016-06-01 | C52: Transports | D52: Blablacar | E52: Virement Bancaire | G52: 14 | H52: =IF(B52<>"",H51+G52-F52,"") -> 1418.75
A53: OK | B53: 2016-06-02 | C53: Retraits | D53: LCL Montrouge | E53: Retrait | F53: 60 | H53: =IF(B53<>"",H52+G53-F53,"") -> 1358.75
A54: OK | B54: 2016-06-02 | C54: Pension Alimentaire | D54: Dewatine Caroline | E54: Virement Bancaire | F54: 150 | H54: =IF(B54<>"",H53+G54-F54,"") -> 1208.75
A55: OK | B55: 2016-06-03 | C55: Transports | D55: Navigo Annuel | E55: Prélevement | F55: 70 | H55: =IF(B55<>"",H54+G55-F55,"") -> 1138.75
A56: OK | B56: 2016-06-03 | C56: Prêt et pension | D56: Réserve Libre Cours LCL | E56: Prélevement | F56: 42 | H56: =IF(B56<>"",H55+G56-F56,"") -> 1096.75
A57: OK | B57: 2016-06-03 | C57: Prêt et pension | D57: Prêt Rachat LCL | E57: Prélevement | F57: 169.92 | H57: =IF(B57<>"",H56+G57-F57,"") -> 926.83
A58: OK | B58: 2016-06-03 | C58: Prêt et pension | D58: Prêr Perso LCL | E58: Prélevement | F58: 138.19 | H58: =IF(B58<>"",H57+G58-F58,"") -> 788.64
A59: OK | B59: 2016-06-06 | C59: Voiture | D59: Oscaro (Christina paiement 1/3) | E59: Carte Bleu | F59: 74.82 | H59: =IF(B59<>"",H58+G59-F59,"") -> 713.82
A60: OK | B60: 2016-06-06 | C60: Alimentation | D60: Leclerc Drive | E60: Carte Bleu | F60: 117.94 | H60: =IF(B60<>"",H59+G60-F60,"") -> 595.88
A61: OK | B61: 2016-06-06 | C61: Alimentation | D61: Kebab Montrouge | E61: Carte Bleu | F61: 25 | H61: =IF(B61<>"",H60+G61-F61,"") -> 570.88
A62: OK | B62: 2016-06-06 | C62: Frais Bancaire | D62: SPB | E62: Prélevement | F62: 2.4 | H62: =IF(B62<>"",H61+G62-F62,"") -> 568.48
A63: OK | B63: 2016-06-06 | C63: Téléphone et Internet | D63: Bouygues Telecom | E63: Prélevement | F63: 1 | H63: =IF(B63<>"",H62+G63-F63,"") -> 567.48
A64: OK | B64: 2016-06-06 | C64: Voiture | D64: VW Bank France | E64: Prélevement | F64: 420.04 | H64: =IF(B64<>"",H63+G64-F64,"") -> 147.44
A65: OK | B65: 2016-06-06 | C65: Alimentation | D65: Restaurant Astérix | E65: Carte Bleu | F65: 17.8 | H65: =IF(B65<>"",H64+G65-F65,"") -> 129.64
A66: OK | B66: 2016-06-07 | C66: Assurances | D66: MGC | E66: Prélevement | F66: 18.65 | H66: =IF(B66<>"",H65+G66-F66,"") -> 110.99
A67: OK | B67: 2016-06-07 | C67: Téléphone et Internet | D67: Bouygues Telecom | E67: Prélevement | F67: 495.79 | H67: =IF(B67<>"",H66+G67-F67,"") -> -384.8
A68: OK | B68: 2016-06-07 | C68: Loyer | D68: LB immobilier (chèque 1/3) | E68: Chèque | F68: 206.92 | H68: =IF(B68<>"",H67+G68-F68,"") -> -591.72
A69: OK | B69: 2016-06-07 | C69: Loyer | D69: Loyer Juin 2016 | E69: Chèque | F69: 134.13 | H69: =IF(B69<>"",H68+G69-F69,"") -> -725.85
A70: OK | B70: 2016-06-07 | C70: Voiture | D70: Carrefour (Essence) | E70: Carte Bleu | F70: 45 | H70: =IF(B70<>"",H69+G70-F70,"") -> -770.85
A71: OK | B71: 2016-06-08 | C71: Alimentation | D71: Lidl | E71: Carte Bleu | F71: 11.84 | H71: =IF(B71<>"",H70+G71-F71,"") -> -782.69
A72: OK | B72: 2016-06-08 | C72: Autres Frais | D72: La Poste | E72: Carte Bleu | F72: 7.72 | H72: =IF(B72<>"",H71+G72-F72,"") -> -790.41
A73: OK | B73: 2016-06-14 | C73: Téléphone et Internet | D73: Bouygues Telecom | E73: Carte Bleu | F73: 10 | H73: =IF(B73<>"",H72+G73-F73,"") -> -800.41
A74: OK | B74: 2016-06-14 | C74: Prêt et pension | D74: CA Consumer Finance (Sofinco) | E74: Virement Bancaire | G74: 9000 | H74: =IF(B74<>"",H73+G74-F74,"") -> 8199.59
A75: OK | B75: 2016-06-14 | C75: Prêt et pension | D75: CA Consumer Finance (Sofinco) | E75: Virement Bancaire | G75: 2000 | H75: =IF(B75<>"",H74+G75-F75,"") -> 10199.59
A76: OK | B76: 2016-06-15 | C76: Remboursement Crédits | D76: LCL Crédit renouvelable | E76: Virement Bancaire | F76: 0.01 | H76: =IF(B76<>"",H75+G76-F76,"") -> 10199.58
A77: OK | B77: 2016-06-15 | C77: Remboursement Crédits | D77: LCL Crédit renouvelable | E77: Prélevement | F77: 946.16 | H77: =IF(B77<>"",H76+G77-F77,"") -> 9253.42
A78: OK | B78: 2016-06-16 | C78: Remboursement Crédits | D78: Remboursement Crédit Rachat LCL | E78: Virement Bancaire | F78: 6951.37 | H78: =IF(B78<>"",H77+G78-F78,"") -> 2302.05
A79: OK | B79: 2016-06-16 | C79: Alimentation | D79: Boulangerie Montrouge | E79: Carte Bleu | F79: 12.5 | H79: =IF(B79<>"",H78+G79-F79,"") -> 2289.55
A80: OK | B80: 2016-06-16 | C80: Alimentation | D80: Quick | E80: Carte Bleu | F80: 38.1 | H80: =IF(B80<>"",H79+G80-F80,"") -> 2251.45
A81: OK | B81: 2016-06-16 | C81: Assurances | D81: GMF (Habitation, Accidents de la vie) | E81: Prélevement | F81: 228.26 | H81: =IF(B81<>"",H80+G81-F81,"") -> 2023.19
A82: OK | B82: 2016-06-16 | C82: Loyer | D82: LB immobilier (chèque 2/3) | E82: Chèque | F82: 206.92 | H82: =IF(B82<>"",H81+G82-F82,"") -> 1816.27
A83: OK | B83: 2016-06-16 | C83: Loyer | D83: LB immobilier (chèque 3/3) | E83: Chèque | F83: 206.92 | H83: =IF(B83<>"",H82+G83-F83,"") -> 1609.35
A84: OK | B84: 2016-06-16 | C84: Retraits | D84: Retrait Express (GMF voiture) | E84: Retrait | F84: 1100 | H84: =IF(B84<>"",H83+G84-F84,"") -> 509.35
A85: OK | B85: 2016-06-16 | C85: Loisirs & Culture | D85: Astérix | E85: Chèque | F85: 10 | H85: =IF(B85<>"",H84+G85-F85,"") -> 499.35
A86: OK | B86: 2016-06-17 | C86: Téléphone et Internet | D86: Bouygues Telecom | E86: Prélevement | F86: 3.59 | H86: =IF(B86<>"",H85+G86-F86,"") -> 495.76
A87: OK | B87: 2016-06-17 | C87: Voiture | D87: APRR | E87: Prélevement | F87: 188.5 | H87: =IF(B87<>"",H86+G87-F87,"") -> 307.26
A88: OK | B88: 2016-06-17 | C88: Autres Frais | D88: Leclerc Location Camion | E88: Carte Bleu | F88: 98 | H88: =IF(B88<>"",H87+G88-F88,"") -> 209.26
A89: OK | B89: 2016-06-20 | C89: Alimentation | D89: Leclerc | E89: Carte Bleu | F89: 137.07 | H89: =IF(B89<>"",H88+G89-F89,"") -> 72.19
A90: OK | B90: 2016-06-20 | C90: Alimentation | D90: Leclerc | E90: Carte Bleu | F90: 30.79 | H90: =IF(B90<>"",H89+G90-F90,"") -> 41.4
A91: OK | B91: 2016-06-20 | C91: Prêt et pension | D91: CA Consumer Finance (Sofinco) | E91: Virement Bancaire | G91: 1500 | H91: =IF(B91<>"",H90+G91-F91,"") -> 1541.4
A92: OK | B92: 2016-06-20 | C92: Voiture | D92: Carrefour (Essence) | E92: Carte Bleu | F92: 60 | H92: =IF(B92<>"",H91+G92-F92,"") -> 1481.4
A93: OK | B93: 2016-06-20 | C93: Autres Frais | D93: Achat Lit Le Bon Coin | E93: Chèque | F93: 100 | H93: =IF(B93<>"",H92+G93-F93,"") -> 1381.4
A94: OK | B94: 2016-06-20 | C94: Téléphone et Internet | D94: Bouygues Telecom | E94: Carte Bleu | F94: 10 | H94: =IF(B94<>"",H93+G94-F94,"") -> 1371.4
A95: OK | B95: 2016-06-21 | C95: Equipement maison & Hightech | D95: Cdiscount | E95: Carte Bleu | F95: 39.99 | H95: =IF(B95<>"",H94+G95-F95,"") -> 1331.41
A96: OK | B96: 2016-06-21 | C96: Prêt et pension | D96: Remboursement Pascale Lyon | E96: Virement Bancaire | G96: 407 | H96: =IF(B96<>"",H95+G96-F96,"") -> 1738.41
A97: OK | B97: 2016-06-22 | C97: Equipement maison & Hightech | D97: Cdiscount | E97: Carte Bleu | F97: 70.99 | H97: =IF(B97<>"",H96+G97-F97,"") -> 1667.42
A98: OK | B98: 2016-06-22 | C98: Equipement maison & Hightech | D98: Cdiscount | E98: Carte Bleu | F98: 5.98 | H98: =IF(B98<>"",H97+G98-F98,"") -> 1661.44
A99: OK | B99: 2016-06-23 | C99: Factures | D99: Engie, GDF | E99: Prélevement | F99: 68.78 | H99: =IF(B99<>"",H98+G99-F99,"") -> 1592.66
A100: OK | B100: 2016-06-23 | C100: Autres Frais | D100: Remboursement TZETZE et cadeaux divers | E100: Chèque | F100: 110 | H100: =IF(B100<>"",H99+G100-F100,"") -> 1482.66
A101: OK | B101: 2016-06-23 | C101: Voiture | D101: Carrefour (Essence) | E101: Carte Bleu | F101: 15.03 | H101: =IF(B101<>"",H100+G101-F101,"") -> 1467.63
A102: OK | B102: 2016-06-23 | C102: Frais Bancaire | D102: Total Incidents Fonctionnements | E102: Prélevement | F102: 92 | H102: =IF(B102<>"",H101+G102-F102,"") -> 1375.63
A103: OK | B103: 2016-06-24 | C103: Assurances | D103: GMF (Habitation, Accidents de la vie) | E103: Prélevement | F103: 6.71 | H103: =IF(B103<>"",H102+G103-F103,"") -> 1368.92
A104: OK | B104: 2016-06-27 | C104: Frais Bancaire | D104: Cotisation Mensuel Carte | E104: Prélevement | F104: 3.55 | H104: =IF(B104<>"",H103+G104-F104,"") -> 1365.37
A105: OK | B105: 2016-06-27 | C105: Frais Bancaire | D105: Assurance Capital Multicomptes | E105: Prélevement | F105: 1.6 | H105: =IF(B105<>"",H104+G105-F105,"") -> 1363.77
A106: OK | B106: 2016-06-27 | C106: Frais Bancaire | D106: Assurance Decouvert Autorisé | E106: Prélevement | F106: 0.8 | H106: =IF(B106<>"",H105+G106-F106,"") -> 1362.97
A107: OK | B107: 2016-06-27 | C107: Voiture | D107: Leclerc (Essence) | E107: Carte Bleu | F107: 60.88 | H107: =IF(B107<>"",H106+G107-F107,"") -> 1302.09
A108: OK | B108: 2016-06-28 | C108: Alimentation | D108: Burger King | E108: Carte Bleu | F108: 42.7 | H108: =IF(B108<>"",H107+G108-F108,"") -> 1259.39
A109: OK | B109: 2016-06-28 | C109: Equipement maison & Hightech | D109: Cdiscount | E109: Carte Bleu | F109: 50.87 | H109: =IF(B109<>"",H108+G109-F109,"") -> 1208.52
A110: OK | B110: 2016-06-28 | C110: Voiture | D110: Carrefour (Essence) | E110: Carte Bleu | F110: 56.27 | H110: =IF(B110<>"",H109+G110-F110,"") -> 1152.25
A111: OK | B111: 2016-06-29 | C111: Remboursement Bancaire | D111: LCL à la Carte | E111: Virement Bancaire | G111: 0.25 | H111: =IF(B111<>"",H110+G111-F111,"") -> 1152.5
A112: OK | B112: 2016-06-29 | C112: Remboursement Bancaire | D112: LCL à la Carte | E112: Virement Bancaire | G112: 1.25 | H112: =IF(B112<>"",H111+G112-F112,"") -> 1153.75
A113: OK | B113: 2016-06-29 | C113: Equipement maison & Hightech | D113: Cdiscount | E113: Carte Bleu | F113: 50.87 | H113: =IF(B113<>"",H112+G113-F113,"") -> 1102.88
A114: OK | B114: 2016-06-30 | C114: Salaire | D114: Société National des Chemins de Fer | E114: Virement Bancaire | G114: 1983.34 | H114: =IF(B114<>"",H113+G114-F114,"") -> 3086.22
A115: OK | B115: 2016-06-30 | C115: Assurances | D115: Remboursement trop perçu | E115: Chèque | G115: 188.14 | H115: =IF(B115<>"",H114+G115-F115,"") -> 3274.36
A116: OK | B116: 2016-06-30 | C116: Transports | D116: Sanef | E116: Carte Bleu | F116: 8.2 | H116: =IF(B116<>"",H115+G116-F116,"") -> 3266.16
A117: OK | B117: 2016-07-01 | C117: Equipement maison & Hightech | D117: Cdiscount | E117: Carte Bleu | F117: 8.1 | H117: =IF(B117<>"",H116+G117-F117,"") -> 3258.06
A118: OK | B118: 2016-07-01 | C118: Frais Bancaire | D118: Intérêts Débiteurs | E118: Prélevement | F118: 26.26 | H118: =IF(B118<>"",H117+G118-F118,"") -> 3231.8
A119: OK | B119: 2016-07-04 | C119: Pension Alimentaire | D119: Dewatine Caroline | E119: Virement Bancaire | F119: 150 | H119: =IF(B119<>"",H118+G119-F119,"") -> 3081.8
A120: OK | B120: 2016-07-04 | C120: Transports | D120: Navigo Annuel | E120: Prélevement | F120: 70 | H120: =IF(B120<>"",H119+G120-F120,"") -> 3011.8
A121: OK | B121: 2016-07-04 | C121: Prêt et pension | D121: Prêr Perso LCL | E121: Prélevement | F121: 138.19 | H121: =IF(B121<>"",H120+G121-F121,"") -> 2873.61
A122: OK | B122: 2016-07-04 | C122: Alimentation | D122: Alboth (Mac Do Montataire) | E122: Carte Bleu | F122: 31.5 | H122: =IF(B122<>"",H121+G122-F122,"") -> 2842.11
A123: OK | B123: 2016-07-04 | C123: Alimentation | D123: Leabi (Intermarché Villers) | E123: Carte Bleu | F123: 52.23 | H123: =IF(B123<>"",H122+G123-F123,"") -> 2789.88
A124: OK | B124: 2016-07-04 | C124: Voiture | D124: Carrefour (Essence) | E124: Carte Bleu | F124: 50.01 | H124: =IF(B124<>"",H123+G124-F124,"") -> 2739.87
A125: OK | B125: 2016-07-04 | C125: Voiture | D125: Carrefour (Essence) | E125: Carte Bleu | F125: 55 | H125: =IF(B125<>"",H124+G125-F125,"") -> 2684.87
A126: OK | B126: 2016-07-04 | C126: Equipement maison & Hightech | D126: Cdiscount | E126: Carte Bleu | F126: 16.36 | H126: =IF(B126<>"",H125+G126-F126,"") -> 2668.51
A127: OK | B127: 2016-07-04 | C127: Prêt et pension | D127: Prêt Rachat LCL | E127: Prélevement | F127: 4.2 | H127: =IF(B127<>"",H126+G127-F127,"") -> 2664.31
A128: OK | B128: 2016-07-04 | C128: Equipement maison & Hightech | D128: Cdiscount | E128: Carte Bleu | F128: 61.7 | H128: =IF(B128<>"",H127+G128-F128,"") -> 2602.61
A129: OK | B129: 2016-07-05 | C129: Loyer | D129: Frais d'agence Cisa | E129: Chèque | F129: 475 | H129: =IF(B129<>"",H128+G129-F129,"") -> 2127.61
A130: OK | B130: 2016-07-05 | C130: Loyer | D130: Loyer Juillet | E130: Chèque | F130: 475 | H130: =IF(B130<>"",H129+G130-F130,"") -> 1652.61
A131: OK | B131: 2016-07-05 | C131: Voiture | D131: VW Bank France | E131: Prélevement | F131: 420.04 | H131: =IF(B131<>"",H130+G131-F131,"") -> 1232.57
A132: OK | B132: 2016-07-05 | C132: Prêt et pension | D132: CA Consumer Finance (Réserve Sofinco) | E132: Prélevement | F132: 45 | H132: =IF(B132<>"",H131+G132-F132,"") -> 1187.57
A133: OK | B133: 2016-07-06 | C133: Loyer | D133: Dépôt de garantie Cisa | E133: Chèque | F133: 950 | H133: =IF(B133<>"",H132+G133-F133,"") -> 237.57
A134: OK | B134: 2016-07-06 | C134: Frais Bancaire | D134: SPB | E134: Prélevement | F134: 2.4 | H134: =IF(B134<>"",H133+G134-F134,"") -> 235.17
A135: OK | B135: 2016-07-06 | C135: Autres Frais | D135: Rachat Fuel | E135: Chèque | F135: 270 | H135: =IF(B135<>"",H134+G135-F135,"") -> -34.83
A136: OK | B136: 2016-07-06 | C136: Autres Frais | D136: La Poste (déménagement) | E136: Carte Bleu | F136: 25.5 | H136: =IF(B136<>"",H135+G136-F136,"") -> -60.33
A137: OK | B137: 2016-07-06 | C137: Dépôt | D137: Virement Tina | E137: Virement Bancaire | G137: 500 | H137: =IF(B137<>"",H136+G137-F137,"") -> 439.67
A138: OK | B138: 2016-07-07 | C138: Assurances | D138: MGC | E138: Prélevement | F138: 18.65 | H138: =IF(B138<>"",H137+G138-F138,"") -> 421.02
A139: OK | B139: 2016-07-07 | C139: Autres Frais | D139: Weight Watchers | E139: Carte Bleu | F139: 17 | H139: =IF(B139<>"",H138+G139-F139,"") -> 404.02
A140: OK | B140: 2016-07-08 | C140: Téléphone et Internet | D140: Bouygues Telecom | E140: Prélevement | F140: 128.75 | H140: =IF(B140<>"",H139+G140-F140,"") -> 275.27
A141: OK | B141: 2016-07-08 | C141: Téléphone et Internet | D141: Bouygues Telecom | E141: Prélevement | G141: 1.68 | H141: =IF(B141<>"",H140+G141-F141,"") -> 276.95
A142: OK | B142: 2016-07-11 | C142: Retraits | D142: Retrait Leclerc | E142: Retrait | F142: 40 | H142: =IF(B142<>"",H141+G142-F142,"") -> 236.95
A143: OK | B143: 2016-07-11 | C143: Alimentation | D143: Leclerc | E143: Carte Bleu | F143: 15.03 | H143: =IF(B143<>"",H142+G143-F143,"") -> 221.92
A144: OK | B144: 2016-07-11 | C144: Retraits | D144: Retrait La Poste | E144: Retrait | F144: 40 | H144: =IF(B144<>"",H143+G144-F144,"") -> 181.92
A145: OK | B145: 2016-07-11 | C145: Voiture | D145: Carrefour (Essence) | E145: Carte Bleu | F145: 55.01 | H145: =IF(B145<>"",H144+G145-F145,"") -> 126.91
A146: OK | B146: 2016-07-11 | C146: Voiture | D146: Carrefour (Essence) | E146: Carte Bleu | F146: 60 | H146: =IF(B146<>"",H145+G146-F146,"") -> 66.91
A147: OK | B147: 2016-07-12 | C147: Bricolage et Déco | D147: Castorama | E147: Carte Bleu | F147: 14.45 | H147: =IF(B147<>"",H146+G147-F147,"") -> 52.46
A148: OK | B148: 2016-07-12 | C148: Prêt et pension | D148: CA Consumer Finance (Sofinco) | E148: Virement Bancaire | G148: 1000 | H148: =IF(B148<>"",H147+G148-F148,"") -> 1052.46
A149: OK | B149: 2016-07-13 | C149: Voyages | D149: Appart City | E149: Carte Bleu | F149: 679.8 | H149: =IF(B149<>"",H148+G149-F149,"") -> 372.66
A150: OK | B150: 2016-07-13 | C150: Alimentation | D150: Leclerc | E150: Carte Bleu | F150: 52 | H150: =IF(B150<>"",H149+G150-F150,"") -> 320.66
A151: OK | B151: 2016-07-14 | C151: Frais Bancaire | D151: Predica | E151: Prélevement | F151: 6.68 | H151: =IF(B151<>"",H150+G151-F151,"") -> 313.98
A152: OK | B152: 2016-07-15 | C152: Loisirs & Culture | D152: Les 3 brasseurs | E152: Carte Bleu | F152: 11.4 | H152: =IF(B152<>"",H151+G152-F152,"") -> 302.58
A153: A venir | B153: 2016-08-01 | C153: Salaire | D153: Société National des Chemins de Fer | E153: Virement Bancaire | G153: 2200 | H153: =IF(B153<>"",H152+G153-F153,"") -> 2502.58
A154: A venir | B154: 2016-08-30 | C154: Voiture | D154: Oscaro (Christina paiement 3/3) | E154: Carte Bleu | F154: 74.82 | H154: =IF(B154<>"",H153+G154-F154,"") -> 2427.76
A155: A venir | B155: 2016-08-30 | C155: Loyer | D155: ??? | E155: Prélevement | F155: 950 | H155: =IF(B155<>"",H154+G155-F155,"") -> 1477.76
A156: A venir | B156: 2016-08-30 | C156: Voiture | D156: APRR | E156: Prélevement | F156: 50 | H156: =IF(B156<>"",H155+G156-F156,"") -> 1427.76
A157: A venir | B157: 2016-08-30 | C157: Frais Bancaire | D157: Assurance Capital Multicomptes | E157: Prélevement | F157: 1.6 | H157: =IF(B157<>"",H156+G157-F157,"") -> 1426.16
A158: A venir | B158: 2016-08-30 | C158: Frais Bancaire | D158: Assurance Decouvert Autorisé | E158: Prélevement | F158: 0.8 | H158: =IF(B158<>"",H157+G158-F158,"") -> 1425.36
A159: A venir | B159: 2016-08-30 | C159: Téléphone et Internet | D159: Bouygues Telecom | E159: Prélevement | F159: 1 | H159: =IF(B159<>"",H158+G159-F159,"") -> 1424.36
A160: A venir | B160: 2016-08-30 | C160: Téléphone et Internet | D160: Bouygues Telecom | E160: Prélevement | F160: 1.49 | H160: =IF(B160<>"",H159+G160-F160,"") -> 1422.87
A161: A venir | B161: 2016-08-30 | C161: Téléphone et Internet | D161: Bouygues Telecom | E161: Prélevement | F161: 67.89 | H161: =IF(B161<>"",H160+G161-F161,"") -> 1354.98
A162: A venir | B162: 2016-08-30 | C162: Frais Bancaire | D162: Cotisation Mensuel Carte | E162: Prélevement | F162: 3.55 | H162: =IF(B162<>"",H161+G162-F162,"") -> 1351.43
A163: A venir | B163: 2016-08-30 | C163: Pension Alimentaire | D163: Dewatine Caroline | E163: Virement Bancaire | F163: 150 | H163: =IF(B163<>"",H162+G163-F163,"") -> 1201.43
A164: A venir | B164: 2016-08-30 | C164: Factures | D164: Engie, GDF | E164: Prélevement | F164: 68.78 | H164: =IF(B164<>"",H163+G164-F164,"") -> 1132.65
A165: A venir | B165: 2016-08-30 | C165: Remboursement Bancaire | D165: LCL à la Carte | E165: Virement Bancaire | G165: 0.25 | H165: =IF(B165<>"",H164+G165-F165,"") -> 1132.9
A166: A venir | B166: 2016-08-30 | C166: Remboursement Bancaire | D166: LCL à la Carte | E166: Virement Bancaire | G166: 1.25 | H166: =IF(B166<>"",H165+G166-F166,"") -> 1134.15
A167: A venir | B167: 2016-08-30 | C167: Assurances | D167: MGC | E167: Prélevement | F167: 18.65 | H167: =IF(B167<>"",H166+G167-F167,"") -> 1115.5
A168: A venir | B168: 2016-08-30 | C168: Transports | D168: Navigo Annuel | E168: Prélevement | F168: 70 | H168: =IF(B168<>"",H167+G168-F168,"") -> 1045.5
A169: A venir | B169: 2016-08-30 | C169: Frais Bancaire | D169: Predica | E169: Prélevement | F169: 6.68 | H169: =IF(B169<>"",H168+G169-F169,"") -> 1038.82
A170: A venir | B170: 2016-08-30 | C170: Prêt et pension | D170: Prêr Perso LCL | E170: Prélevement | F170: 138.19 | H170: =IF(B170<>"",H169+G170-F170,"") -> 900.63
A171: A venir | B171: 2016-08-30 | C171: Prêt et pension | D171: Prêt Perso Sofinco | E171: Prélevement | F171: 202.15 | H171: =IF(B171<>"",H170+G171-F171,"") -> 698.48
A172: A venir | B172: 2016-08-30 | C172: Frais Bancaire | D172: SPB | E172: Prélevement | F172: 2.4 | H172: =IF(B172<>"",H171+G172-F172,"") -> 696.08
A173: A venir | B173: 2016-08-30 | C173: Voiture | D173: VW Bank France | E173: Prélevement | F173: 420.04 | H173: =IF(B173<>"",H172+G173-F173,"") -> 276.04
A174: OK | B174: 2016-07-15 | C174: Bricolage et Déco | D174: Bricoman | E174: Carte Bleu | F174: 49.85 | H174: =IF(B174<>"",H173+G174-F174,"") -> 226.19
A175: OK | B175: 2016-07-15 | C175: Loisirs & Culture | D175: La Pataterie | E175: Carte Bleu | F175: 46 | H175: =IF(B175<>"",H174+G175-F175,"") -> 180.19
A176: OK | B176: 2016-07-15 | C176: Alimentation | D176: Auchan | E176: Carte Bleu | F176: 84.49 | H176: =IF(B176<>"",H175+G176-F176,"") -> 95.7
A177: OK | B177: 2016-07-15 | C177: Alimentation | D177: Masoomia (Boucherie Creil) | E177: Carte Bleu | F177: 88 | H177: =IF(B177<>"",H176+G177-F177,"") -> 7.7
A178: OK | B178: 2016-07-15 | C178: Prêt et pension | D178: Libre Cours | E178: Virement Bancaire | G178: 1000 | H178: =IF(B178<>"",H177+G178-F178,"") -> 1007.7
A179: OK | B179: 2016-07-15 | C179: Bricolage et Déco | D179: Bricoman | E179: Carte Bleu | F179: 50.45 | H179: =IF(B179<>"",H178+G179-F179,"") -> 957.25
A180: OK | B180: 2016-07-18 | C180: Alimentation | D180: Boulangerie Château | E180: Carte Bleu | F180: 19.5 | H180: =IF(B180<>"",H179+G180-F180,"") -> 937.75
A181: OK | B181: 2016-07-18 | C181: Alimentation | D181: Pizza Yolo | E181: Carte Bleu | F181: 64.3 | H181: =IF(B181<>"",H180+G181-F181,"") -> 873.45
A182: OK | B182: 2016-07-18 | C182: Voiture | D182: Parking Reims | E182: Carte Bleu | F182: 1 | H182: =IF(B182<>"",H181+G182-F182,"") -> 872.45
A183: OK | B183: 2016-07-18 | C183: Virement Tina | D183: Virement Tina | E183: Virement Bancaire | G183: 120 | H183: =IF(B183<>"",H182+G183-F183,"") -> 992.45
A184: OK | B184: 2016-07-18 | C184: Virement Tina | D184: Virement Tina | E184: Virement Bancaire | G184: 40 | H184: =IF(B184<>"",H183+G184-F184,"") -> 1032.45
A185: OK | B185: 2016-07-18 | C185: Prêt et pension | D185: Remboursement Pascale | E185: Virement Bancaire | G185: 7 | H185: =IF(B185<>"",H184+G185-F185,"") -> 1039.45
A186: En Attente | B186: 2016-07-18 | C186: Equipement maison & Hightech | D186: Cdiscount | E186: Carte Bleu | F186: 86.5 | H186: =IF(B186<>"",H185+G186-F186,"") -> 952.95
A187: En Attente | B187: 2016-07-18 | C187: Equipement maison & Hightech | D187: Cdiscount | E187: Carte Bleu | F187: 149.8 | H187: =IF(B187<>"",H186+G187-F187,"") -> 803.15
A188: OK | B188: 2016-07-18 | C188: Voiture | D188: Oscaro (Christina paiement 2/3) | E188: Carte Bleu | F188: 74.82 | H188: =IF(B188<>"",H187+G188-F188,"") -> 728.33
A189: OK | B189: 2016-07-18 | C189: Voiture | D189: APRR | E189: Prélevement | F189: 56 | H189: =IF(B189<>"",H188+G189-F189,"") -> 672.33
A190: OK | B190: 2016-07-18 | C190: Gaz | D190: Relai de la Breche | E190: Carte Bleu | F190: 40 | H190: =IF(B190<>"",H189+G190-F190,"") -> 632.33
A191: OK | B191: 2016-07-18 | C191: Gaz | D191: Relai de la Breche | E191: Carte Bleu | F191: 37 | H191: =IF(B191<>"",H190+G191-F191,"") -> 595.33
A192: OK | B192: 2016-07-18 | C192: Voiture | D192: Carrefour (Essence) | E192: Carte Bleu | F192: 27.96 | H192: =IF(B192<>"",H191+G192-F192,"") -> 567.37
A193: OK | B193: 2016-07-18 | C193: Voiture | D193: Carrefour (Essence) | E193: Carte Bleu | F193: 20 | H193: =IF(B193<>"",H192+G193-F193,"") -> 547.37
A194: OK | B194: 2016-07-18 | C194: Voiture | D194: Carrefour (Essence) | E194: Carte Bleu | F194: 38.66 | H194: =IF(B194<>"",H193+G194-F194,"") -> 508.71
A195: A venir | B195: 2016-07-30 | C195: Téléphone et Internet | D195: Bouygues Telecom | E195: Prélevement | F195: 1 | H195: =IF(B195<>"",H194+G195-F195,"") -> 507.71
A196: A venir | B196: 2016-07-30 | C196: Téléphone et Internet | D196: Bouygues Telecom | E196: Prélevement | F196: 3.59 | H196: =IF(B196<>"",H195+G196-F196,"") -> 504.12
A197: A venir | B197: 2016-07-30 | C197: Factures | D197: Engie, GDF | E197: Prélevement | F197: 68.78 | H197: =IF(B197<>"",H196+G197-F197,"") -> 435.34
A198: A venir | B198: 2016-07-30 | C198: Frais Bancaire | D198: Cotisation Mensuel Carte | E198: Prélevement | F198: 3.55 | H198: =IF(B198<>"",H197+G198-F198,"") -> 431.79
A199: A venir | B199: 2016-07-30 | C199: Frais Bancaire | D199: Assurance Capital Multicomptes | E199: Prélevement | F199: 1.6 | H199: =IF(B199<>"",H198+G199-F199,"") -> 430.19
A200: A venir | B200: 2016-07-30 | C200: Frais Bancaire | D200: Assurance Decouvert Autorisé | E200: Prélevement | F200: 0.8 | H200: =IF(B200<>"",H199+G200-F200,"") -> 429.39
... 9799 more rows

Sheet Echéanciers
A1: A venir | B1: 2016-08-30 | C1: Loyer | D1: ??? | E1: Prélevement | F1: 950
A2: A venir | B2: 2016-08-30 | C2: Voiture | D2: APRR | E2: Prélevement | F2: 50
A3: A venir | B3: 2016-08-30 | C3: Frais Bancaire | D3: Assurance Capital Multicomptes | E3: Prélevement | F3: 1.6
A4: A venir | B4: 2016-08-30 | C4: Frais Bancaire | D4: Assurance Decouvert Autorisé | E4: Prélevement | F4: 0.8
A5: A venir | B5: 2016-08-30 | C5: Téléphone et Internet | D5: Bouygues Telecom | E5: Prélevement | F5: 1
A6: A venir | B6: 2016-08-30 | C6: Téléphone et Internet | D6: Bouygues Telecom | E6: Prélevement | F6: 1.49
A7: A venir | B7: 2016-08-30 | C7: Téléphone et Internet | D7: Bouygues Telecom | E7: Prélevement | F7: 67.89
A8: A venir | B8: 2016-08-30 | C8: Prêt et pension | D8: CA Consumer Finance (Réserve Sofinco) | E8: Prélevement | F8: 45
A9: A venir | B9: 2016-08-30 | C9: Frais Bancaire | D9: Cotisation Mensuel Carte | E9: Prélevement | F9: 3.55
A10: A venir | B10: 2016-08-30 | C10: Pension Alimentaire | D10: Dewatine Caroline | E10: Virement Bancaire | F10: 150
A11: A venir | B11: 2016-08-30 | C11: Factures | D11: Engie, GDF | E11: Prélevement | F11: 68.78
A12: A venir | B12: 2016-08-30 | C12: Remboursement Bancaire | D12: LCL à la Carte | E12: Virement Bancaire | G12: 0.25
A13: A venir | B13: 2016-08-30 | C13: Remboursement Bancaire | D13: LCL à la Carte | E13: Virement Bancaire | G13: 1.25
A14: A venir | B14: 2016-08-30 | C14: Assurances | D14: MGC | E14: Prélevement | F14: 18.65
A15: A venir | B15: 2016-08-30 | C15: Transports | D15: Navigo Annuel | E15: Prélevement | F15: 70
A16: A venir | B16: 2016-08-30 | C16: Frais Bancaire | D16: Predica | E16: Prélevement | F16: 6.68
A17: A venir | B17: 2016-08-30 | C17: Prêt et pension | D17: Prêr Perso LCL | E17: Prélevement | F17: 138.19
A18: A venir | B18: 2016-08-30 | C18: Prêt et pension | D18: Prêt Perso Sofinco | E18: Prélevement | F18: 202.15
A19: A venir | B19: 2016-08-30 | C19: Salaire | D19: Société National des Chemins de Fer | E19: Virement Bancaire | G19: 2200
A20: A venir | B20: 2016-08-30 | C20: Frais Bancaire | D20: SPB | E20: Prélevement | F20: 2.4
A21: A venir | B21: 2016-08-30 | C21: Voiture | D21: VW Bank France | E21: Prélevement | F21: 420.04
A22: A venir | B22: 2016-08-30 | C22: Virement Tina | D22: Participation Facture | E22: Virement Bancaire | G22: 800
A24: Total Prélevements : | C24: =F1+F2+F3+F4+F5+F6+F7+F8+F9+F10+F11+F14+F15+F16+F17+F18+F20+F21 -> 2198.22
A25: Total Recettes : | C25: =G12+G13+G19+G22 -> 3001.5
A26: Total Crédits : | C26: =F8+F17+F18+F21 -> 805.38
A27: Total Factures Communes | C27: =F7+F6+F5+F11+F14+F15 -> 227.81

Sheet Listes
A1: Achats divers | C1: Carte Bleu | E1: LCL 50933H | G1: OK
A2: Alimentation | C2: Chèque | G2: En Attente
A3: Assurances | C3: Dépôt | G3: A venir
A4: Autres Frais | C4: Prélevement
A5: Bricolage et Déco | C5: Retrait
A6: Commissions | C6: Virement Bancaire
A7: Dépense de santé
A8: Dépôt
A9: Equipement maison & Hightech
A10: Factures
A11: Frais Bancaire
A12: Gaz
A13: Loisirs & Culture
A14: Loyer
A15: Mutuelle
A16: Pension Alimentaire
A17: Prêt et pension
A18: Remboursement Bancaire
A19: Remboursement Crédits
A20: Restaurant
A21: Retraits
A22: Salaire
A23: Solde Initial
A24: Téléphone et Internet
A25: Transports
A26: Virement Tina
A27: Voiture
A28: Voyages
